bitfinex/quotes_SOLUSD_20250722
["timestamp","ask_amount","ask_price","bid_price","bid_amount"]
[1753197564645,0.06,204.64,204.6,12.16205673]
[1753197564821,0.06,204.64,204.61,12.16205673]
[1753197565020,0.06,204.64,204.6,12.16205673]
[1753197565250,0.06,204.64,204.59,49.52205673]
[1753197565451,12.16205673,204.63,204.57,12.83205673]
[1753197565667,12.16205673,204.63,204.59,37.36]
[1753197565859,0.7,204.62,204.59,37.36]
[1753197566066,12.22205673,204.64,204.59,37.36]
[1753197566261,12.92205673,204.64,204.59,37.36]
[1753197566568,0.06,204.64,204.6,12.16205673]
[1753197567261,0.06,204.64,204.61,12.16205673]
[1753197567862,0.06,204.64,204.62,12.16205673]
[1753197568066,0.06,204.64,204.6,28.9467407]
[1753197568264,0.06,204.64,204.61,12.16205673]
[1753197568765,0.06,204.64,204.61,12.83205673]
[1753197568959,0.06,204.64,204.63,58.2467407]
[1753197569144,0.06,204.64,204.63,100.47360968]
[1753197569342,0.06,204.64,204.63,84.09468397]
[1753197569540,0.06,204.64,204.63,50.17205673]
[1753197569753,0.06,204.64,204.63,66.9567407]
[1753197570366,0.06,204.64,204.63,96.2567407]
[1753197571855,0.06,204.64,204.63,79.47205673]
[1753197572246,0.06,204.64,204.63,96.2567407]
[1753197572565,0.06,204.64,204.63,101.63229657]
[1753197573149,0.06,204.64,204.63,106.51229657]
[1753197573350,0.06,204.64,204.63,106.02360968]
[1753197574559,0.06,204.64,204.63,194.52360968]
[1753197574875,0.06,204.64,204.63,194.50360968]
[1753197576954,0.06,204.7,204.66,26.0]
[1753197577147,0.06,204.7,204.69,41.46205673]
[1753197577348,0.06,204.7,204.69,78.78205673]
[1753197577749,0.06,204.7,204.69,79.45205673]
[1753197578267,0.06,204.7,204.69,101.12217721]
[1753197578479,0.06,204.7,204.69,101.61072086]
[1753197578664,0.06,204.7,204.69,96.2367407]
[1753197578967,0.06,204.7,204.68,29.3]
[1753197579176,0.06,204.7,204.69,95.5667407]
[1753197579475,0.06,204.7,204.69,96.2367407]
[1753197579655,0.06,204.7,204.69,184.0667407]
[1753197579851,0.06,204.7,204.69,29.3]
[1753197580057,0.06,204.7,204.69,66.62]
[1753197580382,0.06,204.7,204.69,96.2367407]
[1753197581064,0.06,204.7,204.69,101.12217721]
[1753197581385,0.06,204.7,204.69,101.61072086]
[1753197581551,0.06,204.7,204.69,49.72122793]
[1753197581871,0.06,204.7,204.69,66.6]
[1753197582287,0.06,204.7,204.69,37.3]
[1753197583477,12.92205673,204.7,204.62,12.16205673]
[1753197583648,12.16205673,204.66,204.6,47.32205673]
[1753197583982,12.16205673,204.64,204.62,0.5]
[1753197584150,12.16205673,204.63,204.62,0.5]
[1753197584484,5.58686898,204.63,204.62,0.5]
[1753197584779,5.58686898,204.63,204.61,37.3]
[1753197585148,0.7,204.63,204.61,37.3]
[1753197585350,12.86205673,204.67,204.61,49.46205673]
[1753197585549,0.06,204.7,204.62,46.08468397]
[1753197585789,4.94523151,204.7,204.64,29.3]
[1753197585983,4.94523151,204.7,204.65,37.3]
[1753197586167,0.7,204.69,204.65,37.3]
[1753197586549,0.06,204.7,204.67,12.16205673]
[1753197586791,0.06,204.7,204.68,37.3]
[1753197587454,0.06,204.7,204.58,26.03]
[1753197587455,0.71,204.69,204.58,26.03]
[1753197587659,12.16205673,204.62,204.58,0.03]
[1753197587981,12.87205673,204.62,204.58,37.33]
[1753197588190,12.87205673,204.61,204.58,0.03]
[1753197588493,0.71,204.61,204.58,0.03]
[1753197588962,0.71,204.65,204.6,12.16205673]
[1753197589159,12.16205673,204.68,204.62,12.16205673]
[1753197589358,6.1722,204.7,204.61,37.3]
[1753197589359,12.87205673,204.67,204.61,37.3]
[1753197589570,12.87205673,204.67,204.61,49.46205673]
[1753197589783,6.1722,204.7,204.64,12.16205673]
[1753197589964,0.06,204.7,204.66,12.16205673]
[1753197590170,12.16205673,204.67,204.64,37.3]
[1753197590484,12.16205673,204.69,204.64,37.3]
[1753197590781,0.71,204.69,204.64,37.3]
[1753197590994,0.71,204.69,204.63,12.16205673]
[1753197590995,12.16205673,204.65,204.62,37.3]
[1753197591171,4.94524889,204.7,204.58,21.70253408]
[1753197591172,0.71,204.64,204.6,37.3]
[1753197591352,12.16205673,204.67,204.61,12.16205673]
[1753197591854,12.16205673,204.65,204.6,37.3]
[1753197592056,0.71,204.67,204.6,49.46205673]
[1753197592267,12.87205673,204.67,204.61,12.16205673]
[1753197592760,12.87205673,204.67,204.61,17.04939851]
[1753197593065,12.16205673,204.69,204.63,12.16205673]
[1753197593268,12.16205673,204.69,204.61,21.67202575]
[1753197593269,0.06,204.7,204.64,37.96]
[1753197593585,0.06,204.7,204.65,12.16205673]
[1753197593759,0.06,204.7,204.65,0.68]
[1753197593954,0.06,204.7,204.67,12.16205673]
[1753197594266,0.06,204.7,204.67,37.28]
[1753197594465,0.06,204.7,204.68,0.68]
[1753197594679,0.06,204.7,204.68,5.56567074]
[1753197595080,0.06,204.7,204.69,17.46468397]
[1753197595262,0.06,204.7,204.69,16.78468397]
[1753197595461,0.06,204.7,204.67,66.58]
[1753197595979,0.06,204.7,204.63,21.67155295]
[1753197596184,0.06,204.7,204.65,16.78468397]
[1753197596402,0.06,204.7,204.68,0.5]
[1753197596571,0.06,204.7,204.69,54.06468397]
[1753197596772,0.06,204.7,204.69,1.16854365]
[1753197596993,0.06,204.7,204.69,0.68]
[1753197597380,0.06,204.7,204.69,37.6]
[1753197597700,0.06,204.7,204.64,0.68]
[1753197597902,0.06,204.7,204.61,21.67180428]
[1753197598107,0.06,204.7,204.59,16.78468397]
[1753197598108,12.16205673,204.67,204.59,16.78468397]
[1753197598284,12.16205673,204.66,204.6,12.16205673]
[1753197598479,0.71,204.65,204.6,49.76205673]
[1753197598877,4.88543651,204.69,204.6,49.76205673]
[1753197599080,4.88543651,204.69,204.61,0.68]
[1753197599380,4.88543651,204.69,204.63,12.16205673]
[1753197599587,0.77,204.7,204.64,49.74205673]
[1753197599788,0.06,204.7,204.68,12.16205673]
[1753197599970,0.06,204.7,204.69,54.34468397]
[1753197600176,0.06,204.7,204.69,16.78468397]
[1753197600478,0.06,204.7,204.62,0.68]
[1753197600797,0.06,204.7,204.63,37.56]
[1753197600999,0.06,204.7,204.65,12.16205673]
[1753197601182,0.06,204.7,204.65,8.01687109]
[1753197601813,0.06,204.7,204.63,16.78468397]
[1753197602101,0.06,204.69,204.64,45.57687109]
[1753197602422,0.06,204.69,204.64,37.56]
[1753197602712,0.06,204.69,204.58,88.53]
[1753197602713,8.01687109,204.65,204.58,0.03]
[1753197602916,8.01687109,204.61,204.58,0.03]
[1753197603128,0.71,204.6,204.58,37.57]
[1753197603640,0.71,204.64,204.58,0.03]
[1753197603801,0.71,204.67,204.62,8.01687109]
[1753197604003,0.71,204.67,204.63,37.56]
[1753197604328,8.01687109,204.64,204.58,0.03]
[1753197604627,4.88780021,204.6,204.58,37.59]
[1753197604813,5.59780021,204.6,204.58,37.59]
[1753197605010,8.72687109,204.59,204.58,0.03]
[1753197605526,8.72687109,204.59,204.58,1e-08]
[1753197605733,26.0,204.55,204.48,0.03]
[1753197606030,8.01687109,204.49,204.48,0.03]
[1753197606241,8.01687109,204.47,204.43,0.03]
[1753197606407,8.01687109,204.44,204.43,0.03]
[1753197606606,4.89141068,204.44,204.43,0.03]
[1753197606915,13.61828177,204.44,204.43,0.03]
[1753197607329,5.60141068,204.44,204.43,0.03]
[1753197607634,8.01687109,204.48,204.43,0.03]
[1753197607635,0.71,204.49,204.43,8.04687109]
[1753197607839,4.88854125,204.56,204.48,8.01687109]
[1753197608004,0.71,204.55,204.49,8.01687109]
[1753197608206,8.01687109,204.54,204.49,8.01687109]
[1753197608529,12.90541234,204.56,204.5,8.01687109]
[1753197608708,8.01687109,204.55,204.5,8.01687109]
[1753197608913,0.71,204.58,204.43,0.03]
[1753197608914,29.32853147,204.58,204.43,0.03]
[1753197609102,0.71,204.55,204.46,8.01687109]
[1753197609299,12.11837614,204.51,204.46,0.68]
[1753197609626,17.10487732,204.62,204.47,37.78]
[1753197609807,17.10487732,204.62,204.46,1.16909322]
[1753197609808,0.71,204.61,204.46,0.68]
[1753197610127,0.71,204.61,204.47,37.8]
[1753197610338,12.11837614,204.52,204.47,37.8]
[1753197610505,12.11837614,204.51,204.48,1.16904538]
[1753197610709,0.71,204.61,204.5,29.3]
[1753197610914,12.11837614,204.58,204.53,16.78468397]
[1753197611235,0.71,204.65,204.54,1.16890192]
[1753197611427,0.71,204.65,204.55,37.82]
[1753197611627,12.11837614,204.59,204.55,37.82]
[1753197611937,0.71,204.65,204.55,37.82]
[1753197612139,12.11837614,204.59,204.55,37.82]
[1753197612434,0.71,204.59,204.56,37.8]
[1753197612734,0.71,204.58,204.54,37.8]
[1753197612915,4.88788994,204.59,204.54,37.8]
[1753197613117,0.71,204.64,204.54,0.68]
[1753197613321,12.11837614,204.63,204.55,38.76]
[1753197613630,12.11837614,204.66,204.6,12.11837614]
[1753197613807,12.11837614,204.66,204.61,38.08]
[1753197614207,4.8856752,204.68,204.61,38.08]
[1753197614408,12.11837614,204.66,204.61,38.08]
[1753197614608,4.8856752,204.68,204.6,0.48875855]
[1753197614914,12.11837614,204.67,204.62,38.08]
[1753197615114,4.8856752,204.68,204.59,16.78468397]
[1753197615330,12.11837614,204.66,204.6,38.06]
[1753197615637,12.11837614,204.67,204.59,16.78468397]
[1753197615837,4.8856752,204.68,204.61,12.11837614]
[1753197616141,4.8856752,204.68,204.62,50.15837614]
[1753197616447,12.11837614,204.67,204.63,38.06]
[1753197616610,12.11837614,204.67,204.61,12.11837614]
[1753197616938,17.00439753,204.67,204.62,38.04]
[1753197617134,0.06,204.69,204.63,12.79837614]
[1753197617436,4.94549692,204.69,204.63,0.68]
[1753197617729,0.06,204.69,204.64,12.11837614]
[1753197617938,4.94549664,204.69,204.64,12.77837614]
[1753197618155,0.67,204.68,204.6,38.76]
[1753197618330,12.11837614,204.63,204.55,0.66]
[1753197618522,12.11837614,204.64,204.58,12.11837614]
[1753197618721,12.11837614,204.64,204.55,0.66]
[1753197618722,12.11837614,204.6,204.55,38.1]
[1753197618945,17.00570458,204.62,204.56,0.66]
[1753197619139,12.11837614,204.59,204.56,38.08]
[1753197619348,4.88732844,204.62,204.56,50.19837614]
[1753197619533,4.88732844,204.62,204.56,50.85837614]
[1753197619732,12.11837614,204.61,204.56,38.74]
[1753197619937,12.11837614,204.59,204.54,38.1]
[1753197620237,0.67,204.58,204.54,38.1]
[1753197620440,17.10509796,204.62,204.46,13.05731697]
[1753197620441,12.11837614,204.59,204.53,38.08]
[1753197620749,17.10509796,204.62,204.55,29.3]
[1753197620750,12.11837614,204.57,204.55,29.3]
[1753197620944,4.88854125,204.56,204.5,12.11837614]
[1753197621244,4.88854125,204.56,204.51,0.66]
[1753197621422,4.88854125,204.56,204.52,38.06]
[1753197621620,0.67,204.55,204.46,0.66]
[1753197621842,12.11837614,204.54,204.51,38.06]
[1753197622048,12.11837614,204.52,204.51,38.06]
[1753197622348,12.11837614,204.52,204.46,0.66]
[1753197622548,17.10989439,204.56,204.47,67.34]
[1753197622715,12.11837614,204.52,204.47,38.04]
[1753197622922,0.67,204.55,204.47,38.04]
[1753197623122,4.88973644,204.51,204.47,38.04]
[1753197624149,4.88942561,204.53,204.47,80.11837614]
[1753197624449,12.11837614,204.5,204.47,29.3]
[1753197624644,4.8889674,204.55,204.48,50.13837614]
[1753197624844,12.11837614,204.54,204.48,38.02]
[1753197625054,4.88949735,204.52,204.48,38.02]
[1753197625248,26.0,204.6,204.5,12.11837614]
[1753197625249,0.67,204.58,204.5,12.11837614]
[1753197625453,4.88782442,204.59,204.52,12.11837614]
[1753197625657,4.88782442,204.59,204.53,50.13837614]
[1753197625858,17.00620056,204.59,204.53,50.13837614]
[1753197626043,17.00620056,204.59,204.53,38.02]
[1753197626243,0.67,204.58,204.53,67.32]
[1753197626447,0.67,204.58,204.49,26.48902146]
[1753197626448,12.11837614,204.58,204.54,67.3]
[1753197626653,4.88753964,204.61,204.54,67.3]
[1753197626844,17.00591578,204.61,204.55,12.77837614]
[1753197627059,4.88663017,204.64,204.55,12.77837614]
[1753197627228,12.11837614,204.63,204.56,29.3]
[1753197627433,12.11837614,204.62,204.56,29.3]
[1753197627633,12.11837614,204.62,204.57,37.98]
[1753197628138,17.10320561,204.64,204.58,37.98]
[1753197628139,12.11837614,204.59,204.58,37.98]
[1753197628357,12.11837614,204.6,204.58,37.98]
[1753197628658,0.67,204.61,204.58,37.98]
[1753197628659,0.67,204.61,204.58,37.94]
[1753197628830,5.55663017,204.64,204.57,12.11837614]
[1753197629032,5.55663017,204.64,204.58,37.94]
[1753197629233,4.88663017,204.64,204.59,0.66]
[1753197629461,12.11837614,204.61,204.58,37.94]
[1753197629759,12.11837614,204.59,204.58,37.94]
[1753197629960,12.78837614,204.59,204.52,29.3]
[1753197630260,12.11837614,204.54,204.48,0.66]
[1753197630463,12.11837614,204.54,204.43,88.53]
[1753197630464,0.67,204.57,204.49,38.0]
[1753197630774,12.11837614,204.5,204.45,29.3]
[1753197630964,0.67,204.49,204.45,38.0]
[1753197631255,4.89045383,204.48,204.45,38.0]
[1753197631428,17.00858557,204.5,204.45,38.0]
[1753197631631,4.88878024,204.55,204.49,12.11837614]
[1753197631848,4.88878024,204.55,204.5,79.45837614]
[1753197632167,4.88854034,204.57,204.51,0.66]
[1753197632333,12.11837614,204.56,204.52,38.02]
[1753197632534,4.88854034,204.57,204.52,38.02]
[1753197632840,12.11837614,204.56,204.52,38.02]
[1753197633046,4.88878024,204.55,204.52,38.02]
[1753197633247,17.00715638,204.55,204.52,38.02]
[1753197633636,5.55878024,204.55,204.51,38.02]
[1753197633952,12.11837614,204.52,204.46,29.3]
[1753197634151,12.11837614,204.5,204.47,38.04]
[1753197634342,0.67,204.54,204.47,38.04]
[1753197634542,12.11837614,204.5,204.47,38.04]
[1753197635033,4.88925829,204.53,204.48,38.02]
[1753197635233,12.11837614,204.51,204.45,58.20306011]
[1753197635433,12.11837614,204.51,204.46,38.02]
[1753197635655,5.55925829,204.53,204.46,38.02]
[1753197635656,12.11837614,204.5,204.46,38.02]
[1753197635857,17.78240403,204.53,204.46,38.02]
[1753197636062,12.11837614,204.49,204.47,38.04]
[1753197636452,0.67,204.52,204.43,0.69]
[1753197636453,12.11837614,204.48,204.43,0.69]
[1753197636658,12.11837614,204.47,204.44,38.02]
[1753197637168,12.2259413,204.49,204.44,38.0]
[1753197637365,4.89021468,204.49,204.43,8.06609366]
[1753197637537,4.89021468,204.49,204.44,38.0]
[1753197637538,8.03609366,204.47,204.44,38.0]
[1753197637739,8.03609366,204.45,204.43,0.03]
[1753197637956,0.67,204.46,204.43,0.03]
[1753197638162,0.67,204.45,204.43,0.03]
[1753197638467,17.11575138,204.49,204.43,0.03]
[1753197638468,8.03609366,204.46,204.43,0.03]
[1753197638639,8.70609366,204.44,204.43,0.03]
[1753197639240,17.69205064,204.44,204.43,0.03]
[1753197640266,17.69205064,204.44,204.39,0.03]
[1753197640466,12.13063996,204.4,204.39,0.03]
[1753197641171,4.89188924,204.42,204.39,0.03]
[1753197641476,12.13063996,204.4,204.39,0.03]
[1753197641938,4.89188924,204.42,204.39,0.03]
[1753197642141,12.13063996,204.4,204.39,0.03]
[1753197642368,4.89188924,204.42,204.39,0.03]
[1753197642538,12.13063996,204.4,204.39,0.03]
[1753197642742,12.80063996,204.4,204.39,0.03]
[1753197643168,0.67,204.4,204.39,0.03]
[1753197643362,17.69300786,204.4,204.39,0.03]
[1753197643944,17.69300786,204.4,204.34,0.03]
[1753197644259,26.0,204.35,204.34,1e-08]
[1753197644465,38.13063996,204.35,204.34,1e-08]
[1753197644658,38.80063996,204.35,204.34,1e-08]
[1753197645374,43.69420492,204.35,204.34,1e-08]
[1753197645571,55.92811732,204.35,204.26,0.2]
[1753197645869,38.13063996,204.28,204.26,1e-08]
[1753197646167,24.26127992,204.27,204.26,1e-08]
[1753197646368,12.13063996,204.24,204.23,0.1]
[1753197646881,12.13063996,204.24,204.23,1e-08]
[1753197646882,12.80063996,204.24,204.23,1e-08]
[1753197647475,17.6968405,204.24,204.23,1e-08]
[1753197648160,17.6968405,204.24,204.22,2.83251422]
[1753197648363,12.79063996,204.23,204.19,0.1]
[1753197648575,38.13063996,204.2,204.09,0.03]
[1753197648754,12.13063996,204.12,204.09,0.03]
[1753197649150,26.0,204.1,204.09,0.03]
[1753197649375,43.03019899,204.1,204.09,0.03]
[1753197649578,17.69019899,204.1,204.09,0.03]
[1753197650171,26.0,204.08,203.93,4.90364204]
[1753197650476,26.66,204.07,203.93,0.69]
[1753197650675,12.13063996,203.98,203.93,0.69]
[1753197650859,38.38,204.06,203.93,0.69]
[1753197650860,38.38,204.06,203.94,28.91532393]
[1753197651053,12.13063996,203.96,203.95,0.69]
[1753197651256,4.9009998,204.04,203.92,5.59365703]
[1753197651488,12.13063996,203.97,203.92,5.59365703]
[1753197651661,0.66,204.03,203.93,0.69]
[1753197651864,12.24878252,204.11,203.95,12.13063996]
[1753197652073,12.13063996,204.04,203.96,0.69]
[1753197652271,12.13063996,204.02,203.96,12.82063996]
[1753197652457,0.66,204.08,203.96,0.69]
[1753197652655,12.13063996,204.03,203.96,12.82063996]
[1753197652977,12.13063996,204.01,203.96,0.69]
[1753197653286,26.0,204.07,203.94,26.0]
[1753197653287,12.13063996,203.99,203.97,0.69]
[1753197653463,12.13063996,203.98,203.85,6.1613]
[1753197653666,12.13063996,203.89,203.85,6.8513]
[1753197653879,12.13063996,203.86,203.83,4.90604915]
[1753197654067,0.66,203.93,203.84,0.69]
[1753197654268,12.13063996,203.88,203.84,0.69]
[1753197654473,12.13063996,203.87,203.84,0.69]
[1753197654666,80.66075352,203.98,203.85,0.69]
[1753197654862,0.66,203.96,203.85,12.82063996]
[1753197655066,0.66,203.96,203.83,4.90604915]
[1753197655067,12.13063996,203.87,203.83,4.90604915]
[1753197655266,26.0,203.8,203.65,5.60034959]
[1753197655502,5.56701212,203.79,203.66,30.69]
[1753197655685,55.30468397,203.83,203.71,12.13063996]
[1753197655686,0.66,203.83,203.71,12.13063996]
[1753197655887,0.66,203.83,203.72,0.69]
[1753197656191,0.66,203.9,203.72,39.25]
[1753197656388,0.66,203.9,203.79,12.13063996]
[1753197656592,0.66,203.9,203.8,12.82063996]
[1753197656794,12.13063996,203.91,203.85,12.13063996]
[1753197656996,12.13063996,203.89,203.83,0.69]
[1753197657225,12.13063996,203.86,203.83,0.69]
[1753197657371,12.13063996,203.87,203.84,0.69]
[1753197657571,12.13063996,203.9,203.85,0.69]
[1753197657872,6.29364073,203.95,203.86,12.82063996]
[1753197658076,6.29364073,203.95,203.83,17.1710053]
[1753197658077,12.13063996,203.94,203.87,12.13063996]
[1753197658270,12.13063996,203.93,203.87,0.69]
[1753197658681,24.39780896,203.92,203.87,0.69]
[1753197658881,12.267169,203.92,203.83,30.90588241]
[1753197659070,12.13063996,203.88,203.84,0.69]
[1753197659424,12.13063996,203.89,203.85,4.90556781]
[1753197659580,12.13063996,203.89,203.86,0.69]
[1753197659794,12.13063996,203.87,203.82,0.69]
[1753197659984,12.13063996,203.85,203.79,4.90701212]
[1753197660185,12.267169,203.92,203.8,16.78468397]
[1753197660388,12.267169,203.92,203.91,12.13063996]
[1753197660594,11.547169,203.92,203.91,12.82063996]
[1753197660776,11.547169,203.92,203.91,0.69]
[1753197660976,11.547169,203.92,203.89,0.49046054]
[1753197661178,11.547169,203.92,203.88,29.3]
[1753197661386,0.66,204.01,203.89,0.69]
[1753197661603,17.14763275,204.11,203.97,12.13063996]
[1753197661915,12.13063996,204.01,203.95,39.0]
[1753197662074,12.13063996,204.0,203.95,39.0]
[1753197662278,12.13063996,203.99,203.95,39.69]
[1753197662487,12.13063996,203.96,203.9,0.69]
[1753197662693,12.13063996,203.99,203.91,16.78468397]
[1753197662901,12.13063996,203.99,203.93,12.13063996]
[1753197663074,0.66,204.0,203.91,16.78468397]
[1753197663287,12.13063996,203.94,203.88,12.13063996]
[1753197663511,0.66,204.0,203.87,39.79]
[1753197663512,12.13063996,203.91,203.87,39.79]
[1753197663718,0.66,204.02,203.9,12.13063996]
[1753197663907,12.13063996,203.98,203.92,12.13063996]
[1753197664104,0.66,204.02,203.92,12.13063996]
[1753197664413,12.13063996,204.03,203.97,12.13063996]
[1753197664615,12.13063996,204.03,203.94,46.08468397]
[1753197664616,0.66,204.11,204.01,12.13063996]
[1753197664820,0.66,204.11,203.98,0.69]
[1753197664821,5.55877244,204.14,204.03,12.13063996]
[1753197665021,12.13063996,204.08,204.03,16.78468397]
[1753197665319,0.66,204.14,204.04,12.82063996]
[1753197665517,0.66,204.14,204.05,17.03139957]
[1753197665701,0.66,204.18,204.09,28.91532393]
[1753197665900,12.13063996,204.15,204.1,0.69]
[1753197666209,12.13063996,204.18,204.12,12.13063996]
[1753197666389,12.13063996,204.19,204.13,12.13063996]
[1753197666587,0.66,204.25,204.13,0.69]
[1753197666794,12.13063996,204.19,204.14,16.78468397]
[1753197667017,5.55605334,204.25,204.14,16.78468397]
[1753197667018,12.13063996,204.18,204.15,0.69]
[1753197667220,12.13063996,204.16,204.13,26.0]
[1753197667426,12.13063996,204.15,204.13,0.69]
[1753197667599,12.13063996,204.15,204.12,26.0]
[1753197667919,12.13063996,204.13,204.07,39.02]
[1753197668216,12.13063996,204.11,204.06,65.73]
[1753197668422,12.13063996,204.09,204.06,65.73]
[1753197668804,0.66,204.14,204.05,65.02]
[1753197669005,12.13063996,204.08,204.05,65.02]
[1753197669323,12.13063996,204.06,204.0,39.71]
[1753197669615,26.0,204.08,204.0,39.71]
[1753197669794,12.13063996,204.05,204.0,39.71]
[1753197669994,12.13063996,204.04,204.01,0.69]
[1753197670398,12.13063996,204.03,204.01,0.69]
[1753197670603,12.13063996,204.03,203.99,16.78468397]
[1753197670806,12.13063996,204.02,204.01,16.78468397]
[1753197671007,30.90013774,204.08,204.01,16.78468397]
[1753197671221,12.13063996,204.03,204.01,16.78468397]
[1753197671392,12.13063996,204.02,204.01,16.78468397]
[1753197671591,4.90025657,204.08,204.01,16.78468397]
[1753197671802,12.13063996,204.03,204.01,17.47468397]
[1753197672020,12.13063996,204.04,204.01,17.47468397]
[1753197672224,11.6108,204.2,204.03,16.78468397]
[1753197672225,12.13063996,204.06,204.03,16.78468397]
[1753197672393,12.13063996,204.06,204.03,17.47468397]
[1753197673126,4.89931899,204.11,204.04,0.69]
[1753197673127,12.13063996,204.08,204.04,0.69]
[1753197673424,38.94,204.22,204.08,16.78468397]
[1753197673425,4.89787921,204.17,204.08,16.78468397]
[1753197673630,12.13063996,204.14,204.09,38.92]
[1753197673806,12.13063996,204.14,204.1,0.69]
[1753197673996,5.55691983,204.21,204.11,17.47468397]
[1753197674199,4.89668362,204.22,204.12,0.48990789]
[1753197674402,12.13063996,204.19,204.14,12.13063996]
[1753197674605,12.13063996,204.19,204.15,39.59]
[1753197674827,12.13063996,204.21,204.16,17.47468397]
[1753197675130,0.66,204.2,204.13,38.88]
[1753197675300,12.13063996,204.15,204.13,55.66468397]
[1753197675501,17.02923896,204.14,204.09,16.78468397]
[1753197675726,4.898599,204.14,204.1,38.88]
[1753197675933,4.898599,204.14,204.05,2.2601]
[1753197675934,5.558599,204.14,204.05,0.69]
[1753197676129,26.0,204.11,204.01,38.88]
[1753197676303,0.66,204.1,204.01,38.88]
[1753197676900,12.13063996,204.02,204.01,38.88]
[1753197677601,4.9011968,204.04,204.01,38.88]
[1753197677815,4.9011968,204.04,204.02,0.67]
[1753197677816,12.13063996,204.04,204.02,0.67]
[1753197677996,12.13063996,204.07,204.03,17.45468397]
[1753197678208,12.13063996,204.07,204.04,0.67]
[1753197678714,4.89931899,204.11,204.04,0.67]
[1753197679017,12.13063996,204.05,204.02,26.0]
[1753197679220,12.13063996,204.05,204.03,38.8]
[1753197679430,17.82761647,204.11,204.03,38.8]
[1753197679617,12.13063996,204.05,204.03,38.8]
[1753197679823,17.03156135,204.05,204.03,38.8]
[1753197680019,12.13063996,204.04,204.03,38.8]
[1753197680736,12.13063996,204.04,203.96,0.67]
[1753197680915,0.68,204.04,203.96,38.72]
[1753197681244,4.90092139,204.05,203.97,17.45468397]
[1753197681434,12.13063996,204.09,204.0,16.78468397]
[1753197681631,4.90051945,204.06,204.02,16.78468397]
[1753197682017,12.13063996,204.04,204.01,38.72]
[1753197682329,4.90051945,204.06,204.01,38.72]
[1753197682725,12.13063996,204.05,204.01,0.67]
[1753197683141,0.68,204.14,204.06,42.78468397]
[1753197683443,12.13063996,204.12,204.08,16.78468397]
[1753197683622,12.13063996,204.15,204.1,16.78468397]
[1753197683820,12.13063996,204.16,204.11,0.67]
[1753197684031,4.89763933,204.18,204.12,39.43]
[1753197684032,12.13063996,204.15,204.12,39.43]
[1753197684234,12.13063996,204.14,204.12,38.76]
[1753197684631,12.13063996,204.13,204.06,26.0]
[1753197684834,12.13063996,204.13,203.66,12.79372466]
[1753197684835,16.78468397,204.06,203.95,0.67]
[1753197685139,26.0,204.09,203.95,0.67]
[1753197685140,12.13063996,203.96,203.95,0.67]
[1753197685443,12.13063996,203.96,203.95,26.0]
[1753197685615,4.90196078,204.0,203.93,38.72]
[1753197685815,12.13063996,203.96,203.93,38.72]
[1753197686041,4.90196078,204.0,203.93,39.39]
[1753197686239,12.13063996,203.94,203.93,38.72]
[1753197686448,12.13063996,203.96,203.93,38.72]
[1753197686741,4.90196078,204.0,203.94,0.67]
[1753197686941,0.68,204.05,203.94,0.67]
[1753197686942,12.13063996,203.99,203.95,38.68]
[1753197687141,17.1534993,204.04,203.95,38.68]
[1753197687515,12.13063996,203.96,203.92,69.58383899]
[1753197687839,12.13063996,203.95,203.93,0.67]
[1753197688142,12.13063996,203.95,203.92,64.68]
[1753197688143,0.68,203.97,203.83,6.1152]
[1753197688348,12.13063996,203.94,203.88,51.44063996]
[1753197688516,12.13063996,203.94,203.89,16.78468397]